[Event "Early Titled Tuesday Blitz | February 8 2022"]
[White "Pourramezanali, Amirreza"]
[Black "Martirosyan, Haik M."]
[WhiteFideId "12511412"]
[BlackFideId "13306553"]
[WhiteElo "2376"]
[BlackElo "2735"]
[Result "0-1"]
[Round "06"]
[TimeControl "180+1"]
[Date "2022.02.08"]
[WhiteClock "0:00:02"]
[BlackClock "0:00:13"]

1. d4 {[%clk 0:03:00]}  Nf6 {[%clk 0:03:00]} 2. c3 {[%clk 0:02:59]}  d6 {[%clk 0:02:57]} 3. Nf3 {[%clk 0:02:57]}  g6 {[%clk 0:02:56]} 4. Bf4 {[%clk 0:02:57]}  Bg7 {[%clk 0:02:55]} 5. h3 {[%clk 0:02:57]}  O-O {[%clk 0:02:55]} 6. e3 {[%clk 0:02:58]}  Nc6 {[%clk 0:02:55]} 7. Be2 {[%clk 0:02:58]}  Nd7 {[%clk 0:02:55]} 8. O-O {[%clk 0:02:57]}  e5 {[%clk 0:02:55]} 9. Bh2 {[%clk 0:02:58]}  e4 {[%clk 0:02:56]} 10. Nfd2 {[%clk 0:02:58]}  f5 {[%clk 0:02:56]} 11. c4 {[%clk 0:02:58]}  Nf6 {[%clk 0:02:56]} 12. Nc3 {[%clk 0:02:59]}  Ne7 {[%clk 0:02:52]} 13. c5 {[%clk 0:02:51]}  d5 {[%clk 0:02:51]} 14. Nb5 {[%clk 0:02:49]}  Ne8 {[%clk 0:02:51]} 15. Qa4 {[%clk 0:02:40]}  Be6 {[%clk 0:02:34]} 16. b4 {[%clk 0:02:28]}  g5 {[%clk 0:02:29]} 17. f4 {[%clk 0:02:21]}  c6 {[%clk 0:02:18]} 18. Nc3 {[%clk 0:02:12]}  Ng6 {[%clk 0:02:17]} 19. b5 {[%clk 0:01:53]}  gxf4 {[%clk 0:02:15]} 20. Bxf4 {[%clk 0:01:49]}  Nxf4 {[%clk 0:01:57]} 21. Rxf4 {[%clk 0:01:50]}  Bd7 {[%clk 0:01:54]} 22. bxc6 {[%clk 0:01:42]}  bxc6 {[%clk 0:01:55]} 23. Nf1 {[%clk 0:01:03]}  Nc7 {[%clk 0:01:51]} 24. Rf2 {[%clk 0:00:50]}  f4 {[%clk 0:01:46]} 25. Bg4 {[%clk 0:00:39]}  Bxg4 {[%clk 0:01:42]} 26. hxg4 {[%clk 0:00:40]}  Qd7 {[%clk 0:01:21]} 27. exf4 {[%clk 0:00:21]}  Ne6 {[%clk 0:01:21]} 28. Ne2 {[%clk 0:00:19]}  Nxc5 {[%clk 0:01:21]} 29. dxc5 {[%clk 0:00:16]}  Bxa1 {[%clk 0:01:21]} 30. Ne3 {[%clk 0:00:17]}  d4 {[%clk 0:01:07]} 31. Nf5 {[%clk 0:00:17]}  e3 {[%clk 0:01:07]} 32. Rf1 {[%clk 0:00:08]}  Rae8 {[%clk 0:00:24]} 33. Rxa1 {[%clk 0:00:06]}  d3 {[%clk 0:00:24]} 34. Qc4+ {[%clk 0:00:04]}  Qd5 {[%clk 0:00:24]} 35. Qxd5+ {[%clk 0:00:03]}  cxd5 {[%clk 0:00:25]} 36. Nc3 {[%clk 0:00:03]}  d4 {[%clk 0:00:24]} 37. Nxd4 {[%clk 0:00:03]}  Rxf4 {[%clk 0:00:24]} 38. Nf3 {[%clk 0:00:04]}  Rxg4 {[%clk 0:00:18]} 39. Kf1 {[%clk 0:00:02]}  Rc4 {[%clk 0:00:17]} 40. Nd5 {[%clk 0:00:03]}  Kg7 {[%clk 0:00:15]} 41. Ne1 {[%clk 0:00:02]}  e2+ {[%clk 0:00:14]} 42. Kf2 {[%clk 0:00:02]}  d2 {[%clk 0:00:13]} 0-1


[Site "https://www.chess.com"]

[Event "Early Titled Tuesday Blitz | February 8 2022"]
[White "Prieto Aranguren, Alain"]
[Black "Alavkin, Arseny"]
[WhiteFideId "2268906"]
[BlackFideId "4120612"]
[WhiteElo "2235"]
[BlackElo "2391"]
[Result "0-1"]
[Round "06"]
[TimeControl "180+1"]
[Date "2022.02.08"]
[WhiteClock "0:00:12"]
[BlackClock "0:00:21"]

1. e4 {[%clk 0:03:00]}  e6 {[%clk 0:02:59]} 2. d4 {[%clk 0:03:00]}  d5 {[%clk 0:03:00]} 3. exd5 {[%clk 0:02:59]}  exd5 {[%clk 0:02:59]} 4. Bd3 {[%clk 0:02:59]}  c5 {[%clk 0:02:58]} 5. dxc5 {[%clk 0:02:56]}  Nf6 {[%clk 0:02:58]} 6. Nf3 {[%clk 0:02:56]}  Bxc5 {[%clk 0:02:56]} 7. O-O {[%clk 0:02:56]}  O-O {[%clk 0:02:56]} 8. Bg5 {[%clk 0:02:56]}  h6 {[%clk 0:02:56]} 9. Bh4 {[%clk 0:02:56]}  g5 {[%clk 0:02:54]} 10. Bg3 {[%clk 0:02:54]}  Ne4 {[%clk 0:02:54]} 11. Nbd2 {[%clk 0:02:53]}  f5 {[%clk 0:02:53]} 12. Be5 {[%clk 0:02:47]}  Nc6 {[%clk 0:02:52]} 13. Nb3 {[%clk 0:02:17]}  Bxf2+ {[%clk 0:02:21]} 14. Rxf2 {[%clk 0:02:12]}  Nxf2 {[%clk 0:02:21]} 15. Kxf2 {[%clk 0:02:12]}  g4 {[%clk 0:02:22]} 16. Qd2 {[%clk 0:01:42]}  gxf3 {[%clk 0:02:18]} 17. Qxh6 {[%clk 0:01:38]}  Nxe5 {[%clk 0:02:12]} 18. gxf3 {[%clk 0:01:38]}  Qf6 {[%clk 0:01:45]} 19. Rg1+ {[%clk 0:01:31]}  Kf7 {[%clk 0:01:45]} 20. Qh7+ {[%clk 0:01:20]}  Ke8 {[%clk 0:01:45]} 21. Bb5+ {[%clk 0:01:10]}  Bd7 {[%clk 0:01:32]} 22. Re1 {[%clk 0:00:39]}  Bxb5 {[%clk 0:01:00]} 23. f4 {[%clk 0:00:30]}  Qb6+ {[%clk 0:00:37]} 24. Kg2 {[%clk 0:00:25]}  Kd8 {[%clk 0:00:32]} 25. Rxe5 {[%clk 0:00:22]}  Bd7 {[%clk 0:00:33]} 26. Qe7+ {[%clk 0:00:20]}  Kc7 {[%clk 0:00:33]} 27. Nc5 {[%clk 0:00:17]}  Qd6 {[%clk 0:00:20]} 28. Ne6+ {[%clk 0:00:13]}  Kc6 {[%clk 0:00:21]} 29. Nxf8 {[%clk 0:00:12]}  Qxe7 {[%clk 0:00:21]} 0-1


[Site "https://www.chess.com"]

[Event "Early Titled Tuesday Blitz | February 8 2022"]
[White "Przybylski, Wojciech"]
[Black "Mirzanurov, Bulat"]
[WhiteFideId "1117599"]
[BlackFideId "4184521"]
[WhiteElo "2133"]
[BlackElo "2116"]
[Result "0-1"]
[Round "06"]
[TimeControl "180+1"]
[Date "2022.02.08"]
[WhiteClock "0:00:14"]
[BlackClock "0:00:04"]

1. d4 {[%clk 0:02:59]}  d5 {[%clk 0:02:59]} 2. c4 {[%clk 0:02:57]}  dxc4 {[%clk 0:02:58]} 3. e4 {[%clk 0:02:56]}  e5 {[%clk 0:02:57]} 4. Nf3 {[%clk 0:02:55]}  exd4 {[%clk 0:02:55]} 5. Bxc4 {[%clk 0:02:55]}  Nc6 {[%clk 0:02:46]} 6. O-O {[%clk 0:02:52]}  Be6 {[%clk 0:02:42]} 7. Bxe6 {[%clk 0:02:52]}  fxe6 {[%clk 0:02:38]} 8. Qb3 {[%clk 0:02:51]}  Qd7 {[%clk 0:02:38]} 9. Qxb7 {[%clk 0:02:50]}  Rb8 {[%clk 0:02:38]} 10. Qa6 {[%clk 0:02:49]}  Bd6 {[%clk 0:02:34]} 11. Nbd2 {[%clk 0:02:46]}  e5 {[%clk 0:02:30]} 12. a3 {[%clk 0:02:33]}  Nf6 {[%clk 0:02:27]} 13. Qc4 {[%clk 0:02:33]}  Na5 {[%clk 0:02:03]} 14. Qd3 {[%clk 0:02:26]}  O-O {[%clk 0:02:00]} 15. b4 {[%clk 0:02:21]}  Nc6 {[%clk 0:01:55]} 16. h3 {[%clk 0:02:07]}  Kh8 {[%clk 0:01:51]} 17. Nc4 {[%clk 0:01:59]}  Rbe8 {[%clk 0:01:35]} 18. b5 {[%clk 0:01:44]}  Nd8 {[%clk 0:01:28]} 19. a4 {[%clk 0:01:40]}  Nf7 {[%clk 0:01:19]} 20. Re1 {[%clk 0:01:32]}  Bb4 {[%clk 0:01:02]} 21. Bd2 {[%clk 0:01:26]}  Bxd2 {[%clk 0:00:57]} 22. Qxd2 {[%clk 0:01:26]}  Qe6 {[%clk 0:00:56]} 23. Rac1 {[%clk 0:01:24]}  Nh5 {[%clk 0:00:41]} 24. Na5 {[%clk 0:01:12]}  Nf4 {[%clk 0:00:37]} 25. Rc6 {[%clk 0:00:59]}  Nd6 {[%clk 0:00:33]} 26. Kf1 {[%clk 0:00:37]}  Qg6 {[%clk 0:00:27]} 27. Nh4 {[%clk 0:00:33]}  Qg5 {[%clk 0:00:26]} 28. g3 {[%clk 0:00:21]}  Nxh3 {[%clk 0:00:22]} 29. Re2 {[%clk 0:00:13]}  Qxd2 {[%clk 0:00:20]} 30. Rxd2 {[%clk 0:00:13]}  Nxe4 {[%clk 0:00:20]} 31. Rb2 {[%clk 0:00:10]}  Nhxf2 {[%clk 0:00:19]} 32. Kg2 {[%clk 0:00:08]}  Nd3 {[%clk 0:00:19]} 33. Re2 {[%clk 0:00:07]}  Rf2+ {[%clk 0:00:15]} 34. Rxf2 {[%clk 0:00:07]}  Nexf2 {[%clk 0:00:14]} 35. Rxc7 {[%clk 0:00:06]}  e4 {[%clk 0:00:15]} 36. Nf5 {[%clk 0:00:06]}  g6 {[%clk 0:00:14]} 37. Nxd4 {[%clk 0:00:06]}  e3 {[%clk 0:00:14]} 38. Ne2 {[%clk 0:00:04]}  Ne4 {[%clk 0:00:10]} 39. Nc4 {[%clk 0:00:03]}  Nd2 {[%clk 0:00:09]} 40. Rxa7 {[%clk 0:00:03]}  Nxc4 {[%clk 0:00:09]} 41. a5 {[%clk 0:00:02]}  Rf8 {[%clk 0:00:09]} 42. b6 {[%clk 0:00:02]}  Rf2+ {[%clk 0:00:09]} 43. Kh3 {[%clk 0:00:02]}  Rxe2 {[%clk 0:00:07]} 44. b7 {[%clk 0:00:03]}  Rb2 {[%clk 0:00:02]} 45. Ra8+ {[%clk 0:00:01]}  Kg7 {[%clk 0:00:02]} 46. b8=Q {[%clk 0:00:01]}  Rxb8 {[%clk 0:00:03]} 47. Rxb8 {[%clk 0:00:01]}  e2 {[%clk 0:00:04]} 48. Re8 {[%clk 0:00:01]}  e1=Q {[%clk 0:00:04]} 49. Rxe1 {[%clk 0:00:01]}  Nxe1 {[%clk 0:00:04]} 50. a6 {[%clk 0:00:02]}  Nb6 {[%clk 0:00:05]} 51. Kg4 {[%clk 0:00:02]}  Nd3 {[%clk 0:00:04]} 52. Kf3 {[%clk 0:00:03]}  Nc5 {[%clk 0:00:05]} 53. Ke3 {[%clk 0:00:02]}  Nxa6 {[%clk 0:00:05]} 54. Kd4 {[%clk 0:00:03]}  Nc7 {[%clk 0:00:05]} 55. g4 {[%clk 0:00:04]}  Ne6+ {[%clk 0:00:05]} 56. Ke5 {[%clk 0:00:04]}  Nf8 {[%clk 0:00:05]} 57. Kf4 {[%clk 0:00:04]}  Nbd7 {[%clk 0:00:05]} 58. Ke4 {[%clk 0:00:05]}  h6 {[%clk 0:00:06]} 59. Kf4 {[%clk 0:00:05]}  h5 {[%clk 0:00:07]} 60. g5 {[%clk 0:00:05]}  Ne6+ {[%clk 0:00:06]} 61. Kg3 {[%clk 0:00:06]}  Nxg5 {[%clk 0:00:05]} 62. Kh4 {[%clk 0:00:07]}  Nf3+ {[%clk 0:00:05]} 63. Kh3 {[%clk 0:00:07]}  Nfe5 {[%clk 0:00:05]} 64. Kg3 {[%clk 0:00:08]}  g5 {[%clk 0:00:05]} 65. Kh3 {[%clk 0:00:09]}  g4+ {[%clk 0:00:05]} 66. Kh4 {[%clk 0:00:09]}  Nf3+ {[%clk 0:00:04]} 67. Kg3 {[%clk 0:00:09]}  Nde5 {[%clk 0:00:03]} 68. Kf4 {[%clk 0:00:09]}  h4 {[%clk 0:00:03]} 69. Ke3 {[%clk 0:00:10]}  g3 {[%clk 0:00:02]} 70. Ke2 {[%clk 0:00:10]}  g2 {[%clk 0:00:03]} 71. Ke3 {[%clk 0:00:10]}  g1=Q+ {[%clk 0:00:04]} 72. Ke4 {[%clk 0:00:11]}  Qe1+ {[%clk 0:00:04]} 73. Kf5 {[%clk 0:00:12]}  Qb1+ {[%clk 0:00:04]} 74. Kf4 {[%clk 0:00:12]}  Qb4+ {[%clk 0:00:03]} 75. Kf5 {[%clk 0:00:12]}  Qb7 {[%clk 0:00:02]} 76. Kf4 {[%clk 0:00:12]}  Qf7+ {[%clk 0:00:02]} 77. Ke4 {[%clk 0:00:12]}  Qg6+ {[%clk 0:00:02]} 78. Kd5 {[%clk 0:00:12]}  h3 {[%clk 0:00:02]} 79. Kc5 {[%clk 0:00:12]}  h2 {[%clk 0:00:03]} 80. Kd5 {[%clk 0:00:13]}  h1=Q {[%clk 0:00:04]} 81. Kc5 {[%clk 0:00:13]}  Qhb1 {[%clk 0:00:04]} 82. Kd5 {[%clk 0:00:14]}  Qc6# {[%clk 0:00:04]} 0-1


[Site "https://www.chess.com"]

[Event "Early Titled Tuesday Blitz | February 8 2022"]
[White "Quintiliano Pinto, Renato R."]
[Black "Carlsson, Ludvig"]
[WhiteFideId "2117568"]
[BlackFideId "1727010"]
[WhiteElo "2439"]
[BlackElo "2178"]
[Result "1-0"]
[Round "06"]
[TimeControl "180+1"]
[Date "2022.02.08"]
[WhiteClock "0:00:39"]
[BlackClock "0:00:24"]

1. Nf3 {[%clk 0:02:55]}  d5 {[%clk 0:02:59]} 2. b3 {[%clk 0:02:56]}  Bf5 {[%clk 0:02:58]} 3. Bb2 {[%clk 0:02:55]}  e6 {[%clk 0:02:58]} 4. g3 {[%clk 0:02:55]}  h6 {[%clk 0:02:58]} 5. Bg2 {[%clk 0:02:55]}  Nf6 {[%clk 0:02:59]} 6. O-O {[%clk 0:02:56]}  Bh7 {[%clk 0:02:59]} 7. d3 {[%clk 0:02:55]}  Be7 {[%clk 0:03:00]} 8. c4 {[%clk 0:02:56]}  O-O {[%clk 0:02:59]} 9. Nbd2 {[%clk 0:02:56]}  c6 {[%clk 0:02:58]} 10. a3 {[%clk 0:02:54]}  a5 {[%clk 0:02:57]} 11. Qb1 {[%clk 0:02:47]}  Nbd7 {[%clk 0:02:57]} 12. b4 {[%clk 0:02:37]}  axb4 {[%clk 0:02:56]} 13. axb4 {[%clk 0:02:38]}  Qb6 {[%clk 0:02:54]} 14. Rxa8 {[%clk 0:02:36]}  Rxa8 {[%clk 0:02:54]} 15. Bc3 {[%clk 0:02:37]}  Qa6 {[%clk 0:02:45]} 16. Qb2 {[%clk 0:02:17]}  Qa2 {[%clk 0:02:42]} 17. Qxa2 {[%clk 0:01:45]}  Rxa2 {[%clk 0:02:43]} 18. Rb1 {[%clk 0:01:45]}  dxc4 {[%clk 0:02:33]} 19. Nxc4 {[%clk 0:01:43]}  Rxe2 {[%clk 0:02:33]} 20. Na5 {[%clk 0:01:35]}  Rc2 {[%clk 0:02:19]} 21. Be1 {[%clk 0:01:33]}  b6 {[%clk 0:02:15]} 22. Nd4 {[%clk 0:01:31]}  Ra2 {[%clk 0:01:50]} 23. Naxc6 {[%clk 0:01:31]}  Bf8 {[%clk 0:01:44]} 24. Rd1 {[%clk 0:01:16]}  Ra3 {[%clk 0:01:42]} 25. Bf1 {[%clk 0:01:13]}  Nd5 {[%clk 0:01:40]} 26. Nb5 {[%clk 0:01:11]}  Rb3 {[%clk 0:01:33]} 27. Ra1 {[%clk 0:01:06]}  Bxd3 {[%clk 0:01:29]} 28. Bxd3 {[%clk 0:01:06]}  Rxd3 {[%clk 0:01:30]} 29. Ra8 {[%clk 0:01:06]}  Kh7 {[%clk 0:01:29]} 30. Rd8 {[%clk 0:01:03]}  Rd1 {[%clk 0:01:25]} 31. Rxd7 {[%clk 0:01:01]}  Rxe1+ {[%clk 0:01:25]} 32. Kg2 {[%clk 0:01:02]}  Nxb4 {[%clk 0:01:21]} 33. Nxb4 {[%clk 0:01:00]}  Bxb4 {[%clk 0:01:22]} 34. Rxf7 {[%clk 0:01:01]}  Bc5 {[%clk 0:01:20]} 35. Nc7 {[%clk 0:00:59]}  Kg6 {[%clk 0:01:15]} 36. Rf3 {[%clk 0:00:59]}  Re2 {[%clk 0:01:12]} 37. g4 {[%clk 0:00:57]}  Re4 {[%clk 0:01:09]} 38. h3 {[%clk 0:00:56]}  Bd6 {[%clk 0:01:06]} 39. Ne8 {[%clk 0:00:56]}  Be5 {[%clk 0:01:04]} 40. Rb3 {[%clk 0:00:54]}  Rf4 {[%clk 0:00:59]} 41. Rxb6 {[%clk 0:00:46]}  Bd4 {[%clk 0:00:55]} 42. Rxe6+ {[%clk 0:00:45]}  Kf7 {[%clk 0:00:55]} 43. Re2 {[%clk 0:00:45]}  Rxf2+ {[%clk 0:00:50]} 44. Rxf2+ {[%clk 0:00:44]}  Bxf2 {[%clk 0:00:51]} 45. Nxg7 {[%clk 0:00:44]}  Kxg7 {[%clk 0:00:43]} 46. Kxf2 {[%clk 0:00:44]}  Kf6 {[%clk 0:00:39]} 47. h4 {[%clk 0:00:41]}  Ke5 {[%clk 0:00:32]} 48. Ke3 {[%clk 0:00:41]}  Kd5 {[%clk 0:00:32]} 49. Kf4 {[%clk 0:00:39]}  Ke6 {[%clk 0:00:32]} 50. Ke4 {[%clk 0:00:38]}  Kf6 {[%clk 0:00:30]} 51. Kd5 {[%clk 0:00:38]}  Kf7 {[%clk 0:00:29]} 52. Ke5 {[%clk 0:00:37]}  Ke7 {[%clk 0:00:28]} 53. Kf5 {[%clk 0:00:37]}  Kf7 {[%clk 0:00:29]} 54. h5 {[%clk 0:00:37]}  Kg7 {[%clk 0:00:25]} 55. Ke6 {[%clk 0:00:37]}  Kh7 {[%clk 0:00:20]} 56. Kf6 {[%clk 0:00:38]}  Kh8 {[%clk 0:00:20]} 57. Kg6 {[%clk 0:00:38]}  Kg8 {[%clk 0:00:21]} 58. Kxh6 {[%clk 0:00:39]}  Kh8 {[%clk 0:00:22]} 59. g5 {[%clk 0:00:39]}  Kg8 {[%clk 0:00:23]} 60. Kg6 {[%clk 0:00:38]}  Kh8 {[%clk 0:00:23]} 61. Kf7 {[%clk 0:00:38]}  Kh7 {[%clk 0:00:23]} 62. g6+ {[%clk 0:00:38]}  Kh6 {[%clk 0:00:24]} 63. g7 {[%clk 0:00:39]} 1-0


[Site "https://www.chess.com"]

[Event "Early Titled Tuesday Blitz | February 8 2022"]
[White "Rangel, Daniel"]
[Black "Vlassov, Nikolai"]
[WhiteFideId "2124475"]
[BlackFideId "4103360"]
[WhiteElo "2187"]
[BlackElo "2407"]
[Result "0-1"]
[Round "06"]
[TimeControl "180+1"]
[Date "2022.02.08"]
[WhiteClock "0:00:10"]
[BlackClock "0:00:32"]

1. d4 {[%clk 0:02:59]}  Nf6 {[%clk 0:02:58]} 2. Nf3 {[%clk 0:03:00]}  e6 {[%clk 0:02:58]} 3. c4 {[%clk 0:03:01]}  Nc6 {[%clk 0:02:58]} 4. Nc3 {[%clk 0:03:00]}  Bb4 {[%clk 0:02:56]} 5. d5 {[%clk 0:02:58]}  exd5 {[%clk 0:02:54]} 6. cxd5 {[%clk 0:02:58]}  Ne7 {[%clk 0:02:55]} 7. Bg5 {[%clk 0:02:57]}  Nexd5 {[%clk 0:02:50]} 8. Qb3 {[%clk 0:02:32]}  O-O {[%clk 0:02:33]} 9. O-O-O {[%clk 0:02:26]}  Nxc3 {[%clk 0:02:29]} 10. bxc3 {[%clk 0:02:13]}  Be7 {[%clk 0:02:30]} 11. e3 {[%clk 0:02:10]}  Ne4 {[%clk 0:02:27]} 12. Bxe7 {[%clk 0:02:05]}  Qxe7 {[%clk 0:02:28]} 13. Qc2 {[%clk 0:02:05]}  Qa3+ {[%clk 0:02:26]} 14. Kb1 {[%clk 0:01:52]}  Nxc3+ {[%clk 0:02:24]} 15. Ka1 {[%clk 0:01:53]}  Nxd1 {[%clk 0:02:23]} 16. Qxd1 {[%clk 0:01:53]}  Qc3+ {[%clk 0:02:20]} 17. Kb1 {[%clk 0:01:53]}  d5 {[%clk 0:02:16]} 18. Bd3 {[%clk 0:01:53]}  c5 {[%clk 0:02:13]} 19. Ng5 {[%clk 0:01:41]}  h6 {[%clk 0:02:08]} 20. Bh7+ {[%clk 0:01:38]}  Kh8 {[%clk 0:02:08]} 21. Qh5 {[%clk 0:01:39]}  a5 {[%clk 0:01:36]} 22. Bc2 {[%clk 0:01:34]}  Qf6 {[%clk 0:01:24]} 23. h4 {[%clk 0:01:30]}  Ra6 {[%clk 0:01:22]} 24. Nh7 {[%clk 0:00:46]}  Rb6+ {[%clk 0:01:22]} 25. Kc1 {[%clk 0:00:47]}  Qa1+ {[%clk 0:01:11]} 26. Kd2 {[%clk 0:00:47]}  Qxh1 {[%clk 0:01:11]} 27. Nxf8 {[%clk 0:00:47]}  Rf6 {[%clk 0:00:50]} 28. Qxd5 {[%clk 0:00:17]}  Rxf2+ {[%clk 0:00:48]} 29. Kc3 {[%clk 0:00:17]}  Qxg2 {[%clk 0:00:45]} 30. Qxf7 {[%clk 0:00:10]}  Rxf7 {[%clk 0:00:32]} 0-1


[Site "https://www.chess.com"]

[Event "Early Titled Tuesday Blitz | February 8 2022"]
[White "Rodchenkov, Sergey D."]
[Black "Kalogridis, Antonios"]
[WhiteFideId "4168712"]
[BlackFideId "25833901"]
[WhiteElo "2306"]
[BlackElo "1495"]
[Result "0-1"]
[Round "06"]
[TimeControl "180+1"]
[Date "2022.02.08"]
[WhiteClock "0:00:05"]
[BlackClock "0:00:47"]

1. e4 {[%clk 0:03:00]}  c6 {[%clk 0:03:00]} 2. d4 {[%clk 0:03:00]}  d5 {[%clk 0:03:01]} 3. e5 {[%clk 0:03:00]}  c5 {[%clk 0:03:01]} 4. dxc5 {[%clk 0:02:53]}  Nc6 {[%clk 0:03:00]} 5. Nf3 {[%clk 0:02:49]}  Bg4 {[%clk 0:02:59]} 6. c3 {[%clk 0:02:41]}  e6 {[%clk 0:02:58]} 7. Be3 {[%clk 0:02:31]}  a6 {[%clk 0:02:54]} 8. Be2 {[%clk 0:02:29]}  Bxf3 {[%clk 0:02:53]} 9. Bxf3 {[%clk 0:02:20]}  Nxe5 {[%clk 0:02:54]} 10. Be2 {[%clk 0:02:20]}  Nf6 {[%clk 0:02:49]} 11. f4 {[%clk 0:02:13]}  Nc6 {[%clk 0:02:45]} 12. O-O {[%clk 0:02:05]}  Ne4 {[%clk 0:02:42]} 13. b4 {[%clk 0:01:59]}  a5 {[%clk 0:02:42]} 14. Bb5 {[%clk 0:01:45]}  Be7 {[%clk 0:02:34]} 15. Qc2 {[%clk 0:01:35]}  axb4 {[%clk 0:02:31]} 16. cxb4 {[%clk 0:01:25]}  Bf6 {[%clk 0:02:28]} 17. Nd2 {[%clk 0:01:24]}  Nxd2 {[%clk 0:02:21]} 18. Qxd2 {[%clk 0:01:20]}  Bxa1 {[%clk 0:02:21]} 19. Rxa1 {[%clk 0:01:21]}  O-O {[%clk 0:02:21]} 20. a3 {[%clk 0:01:09]}  Qf6 {[%clk 0:02:13]} 21. Ra2 {[%clk 0:01:02]}  d4 {[%clk 0:02:05]} 22. Bf2 {[%clk 0:01:02]}  Rfd8 {[%clk 0:02:05]} 23. Bd3 {[%clk 0:00:59]}  e5 {[%clk 0:01:58]} 24. f5 {[%clk 0:00:45]}  Ne7 {[%clk 0:01:46]} 25. g4 {[%clk 0:00:44]}  Nd5 {[%clk 0:01:46]} 26. g5 {[%clk 0:00:31]}  Qe7 {[%clk 0:01:46]} 27. Ra1 {[%clk 0:00:16]}  Nf4 {[%clk 0:01:44]} 28. Be4 {[%clk 0:00:14]}  Qxg5+ {[%clk 0:01:43]} 29. Kh1 {[%clk 0:00:14]}  Qf6 {[%clk 0:01:12]} 30. Rg1 {[%clk 0:00:13]}  Rxa3 {[%clk 0:01:11]} 31. Bg3 {[%clk 0:00:11]}  Qh6 {[%clk 0:01:03]} 32. Bxb7 {[%clk 0:00:06]}  Nh3 {[%clk 0:00:47]} 33. Qxh6 {[%clk 0:00:04]}  gxh6 {[%clk 0:00:48]} 34. Bxe5+ {[%clk 0:00:04]}  Nxg1 {[%clk 0:00:47]} 35. Kxg1 {[%clk 0:00:03]}  d3 {[%clk 0:00:47]} 36. Bf4 {[%clk 0:00:03]}  d2 {[%clk 0:00:47]} 37. Bxd2 {[%clk 0:00:04]}  Rxd2 {[%clk 0:00:47]} 38. c6 {[%clk 0:00:05]}  Ra1# {[%clk 0:00:47]} 0-1


[Site "https://www.chess.com"]

[Event "Early Titled Tuesday Blitz | February 8 2022"]
[White "Roman, Rodrigo"]
[Black "Farmani Anosheh, Armin"]
[WhiteFideId "3701220"]
[BlackFideId "24613240"]
[WhiteElo "2001"]
[BlackElo "2289"]
[Result "0-1"]
[Round "06"]
[TimeControl "180+1"]
[Date "2022.02.08"]
[WhiteClock "0:00:16"]
[BlackClock "0:01:11"]

1. d4 {[%clk 0:03:00]}  Nf6 {[%clk 0:02:59]} 2. Nf3 {[%clk 0:03:01]}  d5 {[%clk 0:02:59]} 3. e3 {[%clk 0:03:01]}  c5 {[%clk 0:02:58]} 4. Bd3 {[%clk 0:03:01]}  Qc7 {[%clk 0:02:58]} 5. b3 {[%clk 0:02:56]}  cxd4 {[%clk 0:02:53]} 6. exd4 {[%clk 0:02:57]}  g6 {[%clk 0:02:53]} 7. Bb2 {[%clk 0:02:57]}  Bg7 {[%clk 0:02:53]} 8. O-O {[%clk 0:02:57]}  O-O {[%clk 0:02:54]} 9. Nbd2 {[%clk 0:02:57]}  Nc6 {[%clk 0:02:53]} 10. Re1 {[%clk 0:02:57]}  b6 {[%clk 0:02:44]} 11. a3 {[%clk 0:02:56]}  Bb7 {[%clk 0:02:38]} 12. Ne5 {[%clk 0:02:48]}  Rfd8 {[%clk 0:02:36]} 13. Nxc6 {[%clk 0:02:44]}  Bxc6 {[%clk 0:02:35]} 14. Qf3 {[%clk 0:02:38]}  a5 {[%clk 0:02:26]} 15. Re2 {[%clk 0:02:15]}  a4 {[%clk 0:02:24]} 16. b4 {[%clk 0:02:15]}  Qd7 {[%clk 0:02:24]} 17. Rae1 {[%clk 0:02:12]}  e6 {[%clk 0:02:24]} 18. Qg3 {[%clk 0:02:00]}  Bb5 {[%clk 0:01:59]} 19. Rc1 {[%clk 0:01:46]}  Rac8 {[%clk 0:01:56]} 20. h3 {[%clk 0:01:40]}  Bc4 {[%clk 0:01:54]} 21. Bxc4 {[%clk 0:01:31]}  dxc4 {[%clk 0:01:53]} 22. Bc3 {[%clk 0:01:17]}  Nd5 {[%clk 0:01:51]} 23. Ne4 {[%clk 0:00:53]}  Nxc3 {[%clk 0:01:41]} 24. Nxc3 {[%clk 0:00:54]}  Bxd4 {[%clk 0:01:41]} 25. Rd1 {[%clk 0:00:50]}  e5 {[%clk 0:01:26]} 26. Rxe5 {[%clk 0:00:18]}  Bxe5 {[%clk 0:01:19]} 27. Qxe5 {[%clk 0:00:18]}  Qe6 {[%clk 0:01:12]} 28. Qb5 {[%clk 0:00:15]}  Rxd1+ {[%clk 0:01:11]} 29. Nxd1 {[%clk 0:00:16]}  Qe1+ {[%clk 0:01:12]} 30. Kh2 {[%clk 0:00:16]}  Qxd1 {[%clk 0:01:11]} 31. Qxc4 {[%clk 0:00:16]}  Rxc4 {[%clk 0:01:11]} 0-1


[Site "https://www.chess.com"]

[Event "Early Titled Tuesday Blitz | February 8 2022"]
[White "Ronka, Erik"]
[Black "Tarasova, Viktoriya"]
[WhiteFideId "505080"]
[BlackFideId "4175840"]
[WhiteElo "2264"]
[BlackElo "2182"]
[Result "1-0"]
[Round "06"]
[TimeControl "180+1"]
[Date "2022.02.08"]
[WhiteClock "0:00:58"]
[BlackClock "0:00:16"]

1. d4 {[%clk 0:03:00]}  Nf6 {[%clk 0:02:58]} 2. Nf3 {[%clk 0:02:59]}  e6 {[%clk 0:02:58]} 3. g3 {[%clk 0:02:59]}  b6 {[%clk 0:02:57]} 4. Bg2 {[%clk 0:03:00]}  Bb7 {[%clk 0:02:57]} 5. O-O {[%clk 0:03:00]}  c5 {[%clk 0:02:58]} 6. dxc5 {[%clk 0:03:01]}  Bxc5 {[%clk 0:02:56]} 7. c4 {[%clk 0:03:01]}  O-O {[%clk 0:02:56]} 8. Nc3 {[%clk 0:03:01]}  a6 {[%clk 0:02:56]} 9. Bf4 {[%clk 0:02:58]}  Be7 {[%clk 0:02:54]} 10. Bd6 {[%clk 0:02:55]}  Bxd6 {[%clk 0:02:51]} 11. Qxd6 {[%clk 0:02:56]}  Ne8 {[%clk 0:02:51]} 12. Qd3 {[%clk 0:02:54]}  d6 {[%clk 0:02:40]} 13. Ng5 {[%clk 0:02:44]}  Qxg5 {[%clk 0:02:34]} 14. Bxb7 {[%clk 0:02:44]}  Ra7 {[%clk 0:02:35]} 15. Bg2 {[%clk 0:02:45]}  Nd7 {[%clk 0:02:30]} 16. Rfd1 {[%clk 0:02:40]}  Qe7 {[%clk 0:02:30]} 17. b3 {[%clk 0:02:39]}  Nc5 {[%clk 0:02:29]} 18. Qd4 {[%clk 0:02:38]}  Qf6 {[%clk 0:02:06]} 19. Qd2 {[%clk 0:02:31]}  Rc7 {[%clk 0:01:31]} 20. Rac1 {[%clk 0:02:27]}  Qe7 {[%clk 0:01:28]} 21. b4 {[%clk 0:02:20]}  Nb7 {[%clk 0:01:22]} 22. Na4 {[%clk 0:02:03]}  b5 {[%clk 0:01:18]} 23. cxb5 {[%clk 0:02:00]}  axb5 {[%clk 0:01:18]} 24. Nc3 {[%clk 0:01:57]}  Qd7 {[%clk 0:01:14]} 25. Qd3 {[%clk 0:01:47]}  Rc4 {[%clk 0:01:09]} 26. Nxb5 {[%clk 0:01:42]}  Rxb4 {[%clk 0:01:08]} 27. Bc6 {[%clk 0:01:26]}  Qe7 {[%clk 0:01:01]} 28. Qa3 {[%clk 0:01:15]}  Rg4 {[%clk 0:00:55]} 29. Qa7 {[%clk 0:01:10]}  Rb4 {[%clk 0:00:30]} 30. Rb1 {[%clk 0:00:58]}  Rxb1 {[%clk 0:00:19]} 31. Rxb1 {[%clk 0:00:59]}  d5 {[%clk 0:00:16]} 32. Qxb7 {[%clk 0:00:58]} 1-0


[Site "https://www.chess.com"]